fUST/lending_fUST_20260408
["ID","MTS","AMOUNT","RATE_DAILY","PERIOD"]
[420079934,1775657440967,-270.83333333,0.00023,2]
[420079935,1775657440978,-162.0,0.00023,7]
[420079936,1775657440989,-300.0,0.00023,2]
[420079937,1775657441000,-49138.17653909,0.00023,2]
[420079938,1775657441012,-200.34,0.00023014,4]
[420079939,1775657441022,-331.79032448,0.00023039,7]
[420079940,1775657441033,-1500.0,0.00023068,2]
[420079941,1775657441044,-1500.0,0.00023068,2]
[420079942,1775657441057,-1500.0,0.00023068,2]
[420079943,1775657441068,-178.82025682,0.00023068,2]
[420079944,1775657441079,-860.28346831,0.00023068,2]
[420079945,1775657441089,-752.12436444,0.00023068,2]
[420079946,1775657441100,-509.63427961,0.00023068,2]
[420079947,1775657441111,-1001.69342998,0.00023068,2]
[420079948,1775657441121,-254.15067737,0.00023079,7]
[420079949,1775657441132,-336.41518209,0.00023079,2]
[420079950,1775657441142,-1242.0,0.00023096,5]
[420079951,1775657441153,-164.91,0.000231,2]
[420079952,1775657441163,-160.0,0.00023132,2]
[420079953,1775657441174,-331.79032448,0.00023175,7]
[420079954,1775657441185,-254.15067737,0.00023216,7]
[420079955,1775657441195,-162.0,0.00023288,7]
[420079956,1775657441205,-331.79032448,0.00023312,7]
[420079957,1775657441216,-254.15067737,0.00023353,7]
[420079958,1775657441227,-5054.4519444,0.0002336,2]
[420079959,1775657441237,-1242.0,0.0002337,5]
[420079960,1775657441248,-775.52147908,0.00023405,2]
[420079961,1775657441259,-331.79032448,0.00023448,14]
[420079962,1775657441270,-254.15067737,0.0002349,7]
[420079963,1775657441280,-2000.0,0.00023516,2]
[420079964,1775657441291,-2000.0,0.00023516,2]
[420079965,1775657441303,-867.00523214,0.00023521,2]
[420079966,1775657441314,-1048.33887369,0.00023521,2]
[420079967,1775657441325,-501.23379986,0.00023521,2]
[420079968,1775657441335,-1000.0,0.00023521,2]
[420079969,1775657441346,-1000.0,0.00023521,2]
[420079970,1775657441357,-331.79032448,0.00023584,14]
[420079971,1775657441368,-169.90105397,0.00023584,14]
[420079972,1775657441379,-2000.0,0.00023616,2]
[420079973,1775657441389,-2000.0,0.00023616,2]
[420079974,1775657441400,-1512.43968481,0.00023616,2]
[420079975,1775657441411,-254.15067737,0.00023627,14]
[420079976,1775657441423,-1242.0,0.00023644,5]
[420079977,1775657441434,-2799.517929,0.00023671,2]
[420079978,1775657441445,-331.79032448,0.0002372,14]
[420079979,1775657441455,-166.69477944,0.00023722,60]
[420079980,1775657441466,-254.15067737,0.00023764,14]
[420079981,1775657441477,-331.79032448,0.00023856,30]
[420079982,1775657441488,-254.15067737,0.00023902,14]
[420079983,1775657441498,-1242.0,0.00023918,5]
[420079984,1775657441509,-331.79032448,0.00023992,30]
[420079985,1775657441519,-326.0,0.00024,2]
[420079986,1775657441530,-170.0,0.00024,2]
[420079987,1775657441541,-374.0,0.00024,2]
[420079988,1775657441552,-162.0,0.00024,2]
[420079989,1775657441563,-254.15067737,0.00024039,30]
[420079990,1775657441573,-2500.0,0.00024064,2]
[420079991,1775657441583,-2500.0,0.00024064,2]
[420079992,1775657441594,-1001.05883689,0.00024068,2]
[420079993,1775657441605,-501.70987121,0.00024068,2]
[420079994,1775657441616,-331.79032448,0.00024128,30]
[420079995,1775657441626,-2829.26803494,0.00024134,13]
[420079996,1775657441637,-2500.0,0.00024164,2]
[420079997,1775657441648,-2500.0,0.00024164,2]
[420079998,1775657441658,-162.0,0.00024164,7]
[420079999,1775657441669,-254.15067737,0.00024176,30]
[420080000,1775657441679,-1242.0,0.00024192,5]
[420080001,1775657441690,-331.79032448,0.00024264,30]
[420080002,1775657441701,-196.3265865,0.00024295,2]
[420080003,1775657441711,-254.15067737,0.00024313,30]
[420080004,1775657441721,-471.56133916,0.00024384,15]
[420080005,1775657441731,-331.79032448,0.00024401,60]
[420080006,1775657441742,-254.15067737,0.0002445,30]
[420080007,1775657441752,-1242.0,0.00024466,5]
[420080008,1775657441763,-165.89516221,0.00024537,60]
[420080009,1775657441774,-169.90105397,0.00024537,60]
[420080010,1775657441784,-250.0,0.0002455,7]
[420080011,1775657441795,-1010.33140726,0.00024551,2]
[420080012,1775657441806,-254.15067737,0.00024587,60]
[420080013,1775657441817,-3000.0,0.00024612,2]
[420080014,1775657441828,-3000.0,0.00024612,2]
[420080015,1775657441839,-2799.517929,0.00024627,2]
[420080016,1775657441849,-471.56133916,0.00024633,16]
[420080017,1775657441859,-160.0,0.00024658,2]
[420080018,1775657441870,-160.0,0.00024658,2]
[420080020,1775657441881,-160.0,0.00024658,2]
[420080041,1775657442097,-160.0,0.00024658,2]
[420080043,1775657442124,-160.0,0.00024658,2]
[420080045,1775657442135,-214.65977659,0.00024658,2]
[420080047,1775657442145,-2000.0,0.00024658,7]
[420080049,1775657442156,-2000.0,0.00024658,7]
[420080051,1775657442167,-842.0394876,0.00024671,2]
[420080053,1775657442177,-720.0,0.00024683,10]
[420080055,1775657442188,-3000.0,0.00024712,2]
[420080057,1775657442198,-3000.0,0.00024712,2]
[420080059,1775657442209,-254.15067737,0.00024725,60]
[420080061,1775657442220,-1242.0,0.0002474,5]
[420080063,1775657442230,-182.62564,0.00024794,14]
[420080065,1775657442241,-188.292608,0.00024868,14]
[420080067,1775657442251,-754.07909399,0.00024876,2]
[420080069,1775657442261,-440.0,0.00024881,2]
[420080071,1775657442271,-184.0,0.00024881,2]
[420080073,1775657442281,-471.56133916,0.00024883,18]
[420080074,1775657442291,-500.0,0.00024973,2]
[420080075,1775657442302,-500.0,0.00024973,2]
[420080076,1775657442315,-500.0,0.00024973,2]
[420080077,1775657442325,-500.0,0.00024973,2]
[420080078,1775657442338,-500.0,0.00024973,2]
[420080079,1775657442349,-500.0,0.00024973,2]
[420080080,1775657442359,-500.0,0.00024973,2]
[420080081,1775657442370,-500.0,0.00024973,2]
[420080082,1775657442381,-500.0,0.00024973,2]
[420080083,1775657442391,-9777.75,0.00025,10]
[420080084,1775657442401,-100000.0,0.00025,30]
[420080085,1775657442412,-150699.86218548,0.00025,30]
[420080510,1775657916506,4031.57337387,0.00028978,120]
[420080515,1775658286211,329.875,0.00031506,120]
[420080516,1775658294740,329.875,0.00031506,120]
[420080517,1775658295183,329.875,0.00031506,120]
[420080518,1775658295609,329.875,0.00031506,120]
[420080519,1775658296070,329.875,0.00031506,120]
[420080520,1775658297133,329.875,0.00031506,120]
[420080521,1775658297167,329.875,0.00031506,120]
[420080522,1775658297394,329.875,0.00031506,120]
[420080524,1775658527402,30118.0613152,0.000315,120]
[420080531,1775658610779,502.0,0.000315,120]
[420080535,1775658632154,-528.55735956,0.00013699,2]
[420080536,1775658632399,-471.44264044,0.00013699,2]
[420080537,1775658632409,-615.0,0.00013699,2]
[420080538,1775658632419,-134.55735956,0.00019178,2]
[420080539,1775658632432,-1107.44264044,0.00019178,2]
[420080540,1775658632442,-246.03020381,0.00019726,2]
[420080541,1775658632454,-253.08869634,0.00019726,2]
[420080578,1775658638673,-1000.0,0.00019726,2]
[420080580,1775658638683,-1000.0,0.00019726,2]
[420080582,1775658638694,-1000.0,0.00019726,2]
[420080583,1775658638704,-1000.0,0.00019726,2]
[420080584,1775658638713,-742.88109985,0.00019726,2]
[420080585,1775658638723,-184.0,0.00020008,2]
[420080586,1775658638732,-440.0,0.00020008,2]
[420080587,1775658638742,-1242.0,0.00020274,2]
[420080588,1775658638751,-3384.29710694,0.00020473,2]
[420080589,1775658638760,-500.0,0.00020498,2]
[420080590,1775658638770,-500.0,0.00020498,2]
[420080591,1775658638780,-500.0,0.00020498,2]
[420080592,1775658638790,-500.0,0.00020498,2]
[420080593,1775658638799,-500.0,0.00020498,2]
[420080594,1775658638809,-167.14634359,0.00020498,2]
[420080595,1775658638818,-500.0,0.00020498,2]
[420080596,1775658638827,-500.0,0.00020498,2]
[420080597,1775658638846,-500.0,0.00020498,2]
[420080598,1775658638861,-500.0,0.00020498,2]
[420080599,1775658638871,-500.0,0.00020498,2]
[420080600,1775658638881,-158.32242609,0.00020498,2]
[420080601,1775658638892,-408.52122696,0.00020498,2]
[420080602,1775658638902,-232554.93344321,0.00020499,2]
[420080603,1775658638911,-500.0,0.00020573,2]
[420080604,1775658638921,-500.0,0.00020573,2]
[420080605,1775658638930,-500.0,0.00020573,2]
[420080606,1775658638939,-500.0,0.00020573,2]
[420080607,1775658638949,-500.0,0.00020573,2]
[420080608,1775658638959,-3779.56455021,0.00020573,2]
[420080609,1775658638969,-186.59092026,0.00020598,2]
[420080610,1775658638980,-200.0,0.00020598,2]
[420080611,1775658638990,-116016.7742834,0.00020599,2]
[420080612,1775658639004,-2003.03421696,0.00020599,2]
[420080613,1775658639017,-1581980.19149964,0.00020599,2]
[420080614,1775658639027,-307.03539668,0.00020673,2]
[420080615,1775658639038,-252.77702052,0.00020687,2]
[420080616,1775658639048,-151.0,0.00020687,2]
[420080617,1775658639059,-151.0,0.00020687,2]
[420080618,1775658639069,-151.0,0.00020687,2]
[420080619,1775658639081,-151.0,0.00020687,2]
[420080620,1775658639093,-151.0,0.00020687,2]
[420080621,1775658639103,-151.0,0.00020687,2]
[420080622,1775658639114,-151.0,0.00020687,2]
[420080623,1775658639124,-151.0,0.00020687,2]
[420080624,1775658639135,-151.0,0.00020687,2]
[420080625,1775658639144,-151.0,0.00020687,2]
[420080626,1775658639154,-151.0,0.00020687,2]
[420080627,1775658639164,-151.0,0.00020687,2]
[420080628,1775658639174,-151.0,0.00020687,2]
[420080629,1775658639183,-151.0,0.00020687,2]
[420080630,1775658639192,-151.0,0.00020687,2]
[420080631,1775658639202,-151.0,0.00020687,2]
[420080632,1775658639212,-151.0,0.00020687,2]
[420080633,1775658639223,-151.0,0.00020687,2]
[420080634,1775658639234,-151.0,0.00020687,2]
[420080635,1775658639244,-162.18590013,0.00020687,2]
[420080636,1775658639255,-922.95,0.00020689,2]
[420080637,1775658639265,-500.0,0.00020699,2]
[420080638,1775658639275,-922.95,0.00020699,2]
[420080639,1775658639285,-922.95,0.00020699,2]
[420080640,1775658639295,-922.95,0.00020699,2]
[420080641,1775658639305,-922.95,0.00020699,2]
[420080642,1775658639314,-922.95,0.00020699,2]
[420080643,1775658639324,-922.95,0.00020699,2]
[420080644,1775658639334,-922.95,0.00020699,2]
[420080645,1775658639346,-922.95,0.00020699,2]
[420080646,1775658639357,-922.95,0.00020699,2]
[420080647,1775658639367,-922.95,0.00020699,2]
[420080648,1775658639378,-922.95,0.00020699,2]
[420080649,1775658639389,-922.95,0.00020699,2]
[420080650,1775658639398,-922.95,0.00020699,2]
[420080651,1775658639407,-922.95,0.00020699,2]
[420080652,1775658639417,-922.95,0.00020699,2]
[420080653,1775658639426,-922.95,0.00020699,2]
[420080654,1775658639436,-922.95,0.00020699,2]
[420080655,1775658639446,-922.95,0.00020699,2]
[420080656,1775658639456,-922.95,0.00020699,2]
[420080657,1775658639467,-922.95,0.00020699,2]
[420080658,1775658639478,-922.95,0.00020699,2]
[420080659,1775658639489,-922.95,0.00020699,2]
[420080660,1775658639500,-923.18,0.00020699,2]
[420080661,1775658639511,-1242.0,0.00020822,2]
[420080662,1775658639520,-500.0,0.00020973,2]
[420080663,1775658639530,-2150.738,0.00021087,2]
[420080664,1775658639539,-1000.0,0.00021121,2]
[420080665,1775658639548,-1000.0,0.00021121,2]
[420080666,1775658639558,-1000.0,0.00021121,2]
[420080667,1775658639566,-1000.0,0.00021121,2]
[420080668,1775658639574,-1000.0,0.00021121,2]
[420080669,1775658639582,-500.0,0.00021247,2]
[420080670,1775658639593,-1242.0,0.0002137,2]
[420080671,1775658639603,-320.0,0.00021389,7]
[420080672,1775658639613,-2230.315306,0.00021635,2]
[420080673,1775658639624,-3779.56455018,0.00021655,2]
[420080674,1775658639634,-1500.0,0.00021668,2]
[420080675,1775658639645,-561.42480622,0.00021668,2]
[420080676,1775658639656,-1500.0,0.00021668,2]
[420080677,1775658639667,-1500.0,0.00021668,2]
[420080678,1775658639677,-1500.0,0.00021668,2]
[420080679,1775658639688,-3384.29710687,0.00021799,2]
[420080680,1775658639699,-786.25,0.00021918,5]
[420080681,1775658639709,-499.99999801,0.00022,2]
[420080682,1775658639719,-357.0,0.00022,2]
[420080683,1775658639730,-316.0,0.00022,2]
[420080684,1775658639740,-191.0,0.00022,2]
[420080685,1775658639750,-350.0,0.00022,2]
[420080686,1775658639760,-154.0,0.00022,2]
[420080687,1775658639771,-2312.83697232,0.00022183,2]
[420080688,1775658639781,-1946.42513875,0.00022216,2]
[420080689,1775658639791,-2000.0,0.00022216,2]
[420080690,1775658639801,-2000.0,0.00022216,2]
[420080691,1775658639811,-2000.0,0.00022216,2]
[420080692,1775658639821,-164.335,0.00022531,2]
[420080693,1775658639832,-188.10556855,0.00022531,2]
[420080694,1775658639843,-247.6739403,0.00022731,2]
[420080695,1775658639853,-3779.56455018,0.00022737,2]
[420080696,1775658639863,-657.91069064,0.00022764,2]
[420080697,1775658639873,-500.0,0.00023,2]
[420080698,1775658639883,-500.0,0.00023,2]
[420080699,1775658639893,-500.0,0.00023,2]
[420080701,1775658639904,-357.0,0.00023,2]
[420080702,1775658639914,-316.0,0.00023,2]
[420080703,1775658639924,-191.0,0.00023,2]
[420080704,1775658639934,-350.0,0.00023,2]
[420080705,1775658639945,-154.0,0.00023,2]
[420080706,1775658639955,-270.83333333,0.00023,2]
[420080707,1775658639964,-184.0,0.00023008,2]
[420080708,1775658639975,-440.0,0.00023008,2]
[420080709,1775658639985,-160.0,0.00023077,2]
[420080710,1775658639995,-3384.29710687,0.00023124,2]
[420080711,1775658640005,-151.0,0.00023143,2]
[420080712,1775658640015,-1000.0,0.00023548,2]
[420080713,1775658640025,-1000.0,0.00023548,2]
[420080714,1775658640035,-286.26165608,0.00023548,2]
[420080715,1775658640045,-151.0,0.00023601,2]
[420080716,1775658640056,-3779.56455018,0.00023819,2]
[420080717,1775658640067,-1627.17906304,0.00023879,27]
[420080718,1775658640077,-357.0,0.00024,2]
[420080719,1775658640088,-316.0,0.00024,2]
[420080720,1775658640098,-191.0,0.00024,2]
[420080721,1775658640108,-350.0,0.00024,2]
[420080722,1775658640118,-1000.0,0.00024,2]
[420080723,1775658640128,-1000.0,0.00024,2]
[420080724,1775658640139,-1000.0,0.00024,2]
[420080725,1775658640148,-154.0,0.00024,2]
[420080726,1775658640159,-151.0,0.00024058,2]
[420080727,1775658640169,-164.35408992,0.00024068,2]
[420080728,1775658640180,-796.9448597,0.00024068,2]
[420080729,1775658640191,-500.95427336,0.00024096,2]
[420080730,1775658640202,-1500.0,0.00024096,2]
[420080731,1775658640213,-1520.76599803,0.00024199,2]
[420080732,1775658640225,-488.79072125,0.00024199,2]
[420080733,1775658640236,-455.1219555,0.00024239,2]
[420080734,1775658640246,-3384.29710687,0.0002445,2]
[420080736,1775658640257,-249.98338345,0.00024474,2]
[420080737,1775658640269,-151.0,0.00024516,2]
[420080738,1775658640279,-169.44349812,0.00024576,2]
[420080740,1775658640291,-424.57307263,0.00024576,2]
[420080742,1775658640301,-1727.64667513,0.00024644,2]
[420080744,1775658640311,-151.0,0.00024644,2]
[420080746,1775658640322,-151.0,0.00024644,2]
[420080748,1775658640332,-151.0,0.00024644,2]
[420080750,1775658640346,-205.63,0.00024762,6]
[420080753,1775658640357,-3779.56455018,0.00024901,2]
[420080755,1775658640369,-336.180023,0.00024935,14]
[420080757,1775658640380,-273.326366,0.00024935,14]
[420080759,1775658640391,-178.1336,0.00024935,14]
[420080761,1775658640403,-1264.2375027,0.00024959,2]
[420080763,1775658640413,-187.8844057,0.00024959,2]
[420080765,1775658640424,-151.0,0.00024973,2]
[420080767,1775658640435,-250.0,0.00024986,7]
[420080769,1775658640446,-49300.13781452,0.00025,30]
[420080771,1775658640457,-150.5032767,0.00025,2]
[420080773,1775658640468,-200.0,0.00025,7]
[420080775,1775658640478,-10000.0,0.00025,2]
[420080777,1775658640489,-357.0,0.00025,2]
[420080779,1775658640500,-316.0,0.00025,2]
[420080781,1775658640511,-191.0,0.00025,2]
[420080783,1775658640521,-350.0,0.00025,2]
[420080785,1775658640533,-151.0,0.00025,2]
[420080787,1775658640544,-154.0,0.00025,2]
[420080789,1775658640556,-151.0,0.00025,2]
[420080791,1775658640567,-151.0,0.00025,2]
[420080793,1775658640578,-151.0,0.00025,2]
[420080795,1775658640593,-151.0,0.00025,2]
[420080797,1775658640603,-1334.480125,0.00025,5]
[420080799,1775658640615,-151.0,0.00025,2]
[420080801,1775658640625,-151.0,0.00025,2]
[420080803,1775658640636,-163.0,0.00025,7]
[420080805,1775658640648,-151.0,0.00025,2]
[420080807,1775658640659,-301.665566,0.00025,2]
[420080810,1775658640670,-202.05489831,0.00025094,7]
[420080812,1775658640682,-257.85,0.000251,2]
[420080814,1775658640693,-3184.59165935,0.0002512,2]
[420080815,1775658640704,-2082.04687951,0.0002514,44]
[420080816,1775658640714,-3245.3262906,0.00025154,44]
[420080817,1775658640724,-8809.93659851,0.000252,3]
[420080819,1775658640734,-151.0,0.000252,2]
[420080820,1775658640744,-151.0,0.000252,2]
[420080822,1775658640755,-164.606534,0.00025434,2]
[420080824,1775658640766,-156.859069,0.00025434,2]
[420080826,1775658640776,-164.606534,0.00025434,2]
[420080828,1775658640785,-156.859069,0.00025434,2]
[420080830,1775658640795,-151.0,0.00025434,2]
[420080832,1775658640805,-164.606534,0.00025434,2]
[420080833,1775658640815,-156.859069,0.00025434,2]
[420080835,1775658640825,-151.0,0.00025434,2]
[420080837,1775658640836,-164.606534,0.00025434,2]
[420080839,1775658640849,-156.859069,0.00025434,2]
[420080841,1775658640859,-151.0,0.00025434,2]
[420080843,1775658640869,-151.0,0.00025434,2]
[420080844,1775658640879,-151.0,0.00025434,2]
[420080846,1775658640890,-151.0,0.00025434,2]
[420080848,1775658640901,-151.0,0.00025434,2]
[420080850,1775658640911,-273.317882,0.00025434,2]
[420080852,1775658640922,-151.0,0.00025434,2]
[420080854,1775658640932,-200.0,0.00025443,2]
[420080856,1775658640942,-202.05489831,0.00025444,7]
[420080858,1775658640953,-202.05489831,0.00025444,7]
[420080860,1775658640963,-202.05489831,0.00025444,7]
[420080862,1775658640974,-420596.4864576,0.00025444,2]
[420080865,1775658640988,-12913.79060295,0.00025444,2]
[420080866,1775658641000,-3460.04832199,0.00025444,2]
[420080869,1775658641015,-2263.13675213,0.00025444,2]
[420080871,1775658641027,-6358.05590275,0.00025444,2]
[420080873,1775658641040,-692.0,0.00025444,2]
[420080875,1775658641052,-6212.50644161,0.00025444,2]
[420081028,1775658642742,2782.49254715,0.000315,120]
[420081350,1775658646835,-680.12,0.00020599,2]
[420081351,1775658646846,-680.12,0.00020599,2]
[420081352,1775658646857,-680.12,0.00020599,2]
[420081353,1775658646867,-680.12,0.00020599,2]
[420081354,1775658646877,-680.12,0.00020599,2]
[420081355,1775658646888,-680.12,0.00020599,2]
[420081356,1775658646898,-180.52,0.00021256,2]
[420081357,1775658646909,-166.65558897,0.00024474,2]
[420081358,1775658646919,-151.0,0.00025,2]
[420081359,1775658646929,-29234.91543536,0.00025444,2]
[420081390,1775658935726,611.34,0.00031,120]
[420081499,1775659738629,165.768524,9.427e-05,2]
[420081541,1775659835146,-288.0517401,0.00010887,2]
[420081542,1775659835159,-11.9482599,0.00010887,2]
[420081543,1775659835379,-328.52485679,0.00010888,2]
[420081567,1775659839167,-4671.47514321,0.00010888,2]
[420081568,1775659839178,-573.0,0.00010888,2]
[420081569,1775659839187,-165.768524,0.00010998,2]
[420081570,1775659839197,-300.0,0.00011965,2]
[420081571,1775659839207,-165.768524,0.00012569,2]
[420081572,1775659839216,-1000.0,0.00013699,2]
[420081573,1775659839226,-165.768524,0.0001414,2]
[420081574,1775659839236,-165.768524,0.00015711,2]
[420081575,1775659839246,-165.768524,0.00017282,2]
[420081576,1775659839256,-12744.3006562,0.00018408,2]
[420081577,1775659839475,-165.768524,0.00018854,2]
[420081578,1775659839485,-179.94944,0.00019265,2]
[420081579,1775659839495,-1000.0,0.00019726,2]
[420081580,1775659839505,-278.14,0.0002,2]
[420081581,1775659839515,-156.0,0.00020092,2]
[420081582,1775659839525,-591.66666668,0.00020199,2]
[420081583,1775659839535,-253.50501592,0.00020273,2]
[420081584,1775659839546,-511.74477466,0.00020273,2]
[420081585,1775659839556,-500.0,0.00020273,2]
[420081586,1775659839566,-500.0,0.00020273,2]
[420081587,1775659839577,-863.14,0.00020289,3]
[420081588,1775659839587,-500.0,0.00020298,2]
[420081589,1775659839597,-588.28844101,0.00020298,2]
[420081590,1775659839607,-500.0,0.00020298,2]
[420081591,1775659839618,-500.0,0.00020298,2]
[420081592,1775659839628,-631.96961029,0.00020298,2]
[420081593,1775659839637,-500.0,0.00020298,2]
[420081594,1775659839647,-607.22848899,0.00020298,2]
[420081595,1775659839657,-500.0,0.00020298,2]
[420081596,1775659839668,-500.0,0.00020298,2]
[420081597,1775659839678,-500.0,0.00020298,2]
[420081598,1775659839688,-495.88754891,0.00020298,2]
[420081599,1775659839698,-500.0,0.00020298,2]
[420081600,1775659839709,-160.77697936,0.00020298,2]
[420081601,1775659839720,-33088.28454895,0.00020299,2]
[420081602,1775659839730,-712.14,0.00020299,2]
[420081603,1775659839740,-712.14,0.00020299,2]
[420081604,1775659839750,-712.14,0.00020299,2]
[420081605,1775659839761,-712.14,0.00020299,2]
[420081606,1775659839771,-712.14,0.00020299,2]
[420081607,1775659839781,-712.14,0.00020299,2]
[420081608,1775659839791,-712.14,0.00020299,2]
[420081609,1775659839801,-712.14,0.00020299,2]
[420081610,1775659839811,-712.14,0.00020299,2]
[420081611,1775659839822,-712.14,0.00020299,2]
[420081612,1775659839832,-712.14,0.00020299,2]
[420081613,1775659839841,-712.14,0.00020299,2]
[420081614,1775659839851,-712.14,0.00020299,2]
[420081615,1775659839861,-874.14,0.00020299,2]
[420081616,1775659839873,-591.66666666,0.00020299,2]
[420081617,1775659839883,-200.0,0.00020372,2]
[420081618,1775659839893,-500.0,0.00020373,2]
[420081619,1775659839902,-591.66666666,0.00020399,2]
[420081620,1775659839912,-151.0,0.000204,4]
[420081621,1775659839922,-194.32363686,0.00020582,3]
[420081622,1775659840265,-916.50706171,0.00020821,2]
[420081623,1775659840275,-1000.0,0.00020821,2]
[420081624,1775659840285,-652.46846813,0.00020856,3]
[420081625,1775659840295,-1000.0,0.00020921,2]
[420081626,1775659840305,-435.0,0.00021488,7]
[420081627,1775659840315,-200.0,0.00021564,2]
[420081628,1775659840325,-1399.758964,0.00021609,2]
[420081629,1775659840335,-1232.27170924,0.00021937,3]
[420081630,1775659840345,-285.0,0.00022,2]
[420081631,1775659840355,-253.0,0.00022,2]
[420081632,1775659840365,-153.0,0.00022,2]
[420081633,1775659840376,-280.0,0.00022,2]
[420081634,1775659840386,-159.20044005,0.00022,2]
[420081635,1775659840397,-1399.758964,0.00022518,2]
[420081636,1775659840407,-196.39116048,0.00022604,2]
[420081637,1775659840417,-537.6845,0.00022604,2]
[420081638,1775659840427,-2150.738,0.00022604,2]
[420081639,1775659840436,-753.94,0.0002276,2]
[420081640,1775659840446,-753.94,0.00022876,2]
[420081641,1775659840456,-500.0,0.00022876,2]
[420081642,1775659840467,-487.24,0.00022876,2]
[420081643,1775659840477,-500.0,0.00022876,2]
[420081644,1775659840486,-500.0,0.00022876,2]
[420081645,1775659840496,-285.0,0.00023,2]
[420081646,1775659840506,-253.0,0.00023,2]
[420081647,1775659840516,-153.0,0.00023,2]
[420081648,1775659840526,-280.0,0.00023,2]
[420081649,1775659840537,-270.83333333,0.00023,2]
[420081650,1775659840547,-1812.07495035,0.00023018,16]
[420081651,1775659840557,-1399.758964,0.00023428,2]
[420081652,1775659840567,-7785.43,0.00023584,10]
[420081653,1775659840577,-285.0,0.00024,2]
[420081654,1775659840588,-253.0,0.00024,2]
[420081655,1775659840597,-153.0,0.00024,2]
[420081656,1775659840607,-280.0,0.00024,2]
[420081657,1775659840618,-325.0882202,0.00024241,2]
[420081658,1775659840628,-1399.758964,0.00024338,2]
[420081659,1775659840638,-222.20745196,0.00024681,2]
[420081661,1775659840648,-285.0,0.00025,2]
[420081662,1775659840658,-253.0,0.00025,2]
[420081664,1775659840669,-153.0,0.00025,2]
[420081666,1775659840678,-280.0,0.00025,2]
[420081668,1775659840688,-1000.0,0.00025,2]
[420081669,1775659840698,-1000.0,0.00025,2]
[420081670,1775659840709,-163.0,0.00025,7]
[420081671,1775659840718,-347.96569165,0.0002509,2]
[420081672,1775659840728,-656.75894331,0.0002509,2]
[420081673,1775659840738,-1399.758964,0.00025247,2]
[420081674,1775659840748,-2363.51427418,0.00025344,2]
[420081675,1775659840763,-164.335,0.00025434,10]
[420081676,1775659840774,-500.0,0.00025443,2]
[420081677,1775659840785,-500.0,0.00025443,2]
[420081678,1775659840795,-500.0,0.00025443,2]
[420081679,1775659840805,-500.0,0.00025443,2]
[420081680,1775659840815,-458.87676836,0.00025443,2]
[420081681,1775659840824,-500.0,0.00025443,2]
[420081682,1775659840835,-466.17165065,0.00025443,2]
[420081683,1775659840847,-500.0,0.00025443,2]
[420081684,1775659840857,-500.0,0.00025443,2]
[420081685,1775659840868,-500.0,0.00025443,2]
[420081686,1775659840878,-500.0,0.00025443,2]
[420081687,1775659840888,-500.0,0.00025443,2]
[420081688,1775659840898,-500.0,0.00025443,2]
[420081689,1775659840909,-602.63660522,0.00025443,2]
[420081690,1775659840919,-500.0,0.00025443,2]
[420081691,1775659840929,-500.0,0.00025443,2]
[420081692,1775659840940,-945076.5499894,0.00025444,2]
[420081693,1775659840954,-4869.65549784,0.00025444,2]
[420081694,1775659840966,-41019.14538653,0.00025444,2]